Cogmind - Beta 12 --- EXPLORER MODE // 2024.02.04 @ 23:30:49 Player: Arctrect Result: Destroyed by S-10 Pest with Light Assault Rifle Performance ------------- Evolutions (0) 0 Regions Visited (1) 200 Robots Destroyed (6) 30 Value Destroyed (151) 151 Prototype IDs (0) 0 Alien Tech Used (0) 0 Bonus (0) 0 TOTAL SCORE: 381 Bonus ------- None Cogmind --------- Core Integrity 0/250 Matter 300/300 Energy 99/100 System Corruption 0% Temperature Cool (0) Movement Core (200) Ox3 Location -10/Materials Parts ------- > --- POWER (2) -------- (None) > --- PROPULSION (2) --- (None) > --- UTILITY (2) ------ Medium Storage Unit > --- WEAPON (2) ------- (None) > --- INVENTORY (10) --- Ion Engine Light Ion Engine Aluminum Leg Assault Rifle Light Assault Rifle Peak State ------------ > --- POWER ------------ Ion Engine > --- PROPULSION ------- Light Treads Light Treads > --- UTILITY ---------- Medium Storage Unit > --- WEAPON ----------- EM Pulse Gun > --- INVENTORY -------- Ion Engine [Rating: 5] Favorites ----------- Power Ion Engine Engine Ion Engine Propulsion Light Treads Treads Light Treads Utility Medium Storage Unit Storage Medium Storage Unit Weapon EM Pulse Gun Energy Gun EM Pulse Gun Build | -11 -10 ------- Run | Jun Mat Slots Evolved 1 | . 1 Power 1 | . 1 Propulsion . | . . Utility . | . . Weapon . | . . Parts Attached 5 | 5 . Power 1 | 1 . Engine 1 | 1 . Core . | . . Reactor . | . . Propulsion 2 | 2 . Treads 2 | 2 . Leg . | . . Wheel . | . . Hover . | . . Flight . | . . Utility 1 | 1 . Device . | . . Storage 1 | 1 . Processor . | . . Hackware . | . . Protection . | . . Artifact . | . . Weapon 1 | 1 . Energy Gun 1 | 1 . Energy Cannon . | . . Ballistic Gun . | . . Ballistic Cannon . | . . Launcher . | . . Special Weapon . | . . Impact Weapon . | . . Slashing Weapon . | . . Piercing Weapon . | . . Special Melee Weapon . | . . Unidentified Prototypes . | . . Parts Lost 4 | . 4 Power 1 | . 1 Propulsion 2 | . 2 Utility . | . . Weapon 1 | . 1 Highest Loss Streak 2 | . 2 To Critical Strikes . | . . Average Slot Usage (%) 42 | . 42 Engine 10 | . 10 Treads 15 | . 15 Storage 12 | . 12 Energy Gun 4 | . 4 Naked Turns . | . . Heaviest Build 17 | 17 17 Greatest Support 40 | 40 40 Greatest Overweight (x) 5 | 5 3 Average Overweight (x) . | . . Largest Inventory Capacity 10 | 10 10 Average Capacity 9 | 7 10 Most Carried 5 | 4 5 Average Carried 3 | 1 4 Final Capacity 10 | 10 10 Final Carried 5 | 4 5 Class Distribution -------------------- 100% | Hacker-Mutant Dominant Class ---------------- Hacker-Mutant | -10/Materials Resources | -11 -10 ----------- Run | Jun Mat Matter Collected 250 | 250 . Remotely . | . . Salvage Created 164 | . 164 Parts 6 | . 6 Haulers Intercepted . | . . Recyclers Shooed . | . . Parts Field Recycled . | . . Retrieved Matter . | . . Parts Self-Destructed . | . . Prevented . | . . Kills | -11 -10 ------- Run | Jun Mat Combat Hostiles Destroyed 5 | . 5 Melee 5 | . 5 Classes Destroyed 3 | . 3 Watcher 1 | . 1 Swarmer 2 | . 2 Grunt 3 | . 3 Best Kill Streak 2 | . 2 Combat Bots Only 2 | . 2 Max Kills in Single Turn 1 | . 1 Gunslinging . | . . Exploded . | . . Melee 1 | . 1 Uniques/NPCs Destroyed . | . . Combat | -11 -10 -------- Run | Jun Mat Damage Taken 715 | . 715 Core 251 | . 251 Absorbed by Shields . | . . Core Remaining (%) 100 | 100 . Volleys Fired . | . . Largest . | . . Hottest . | . . Shots Fired . | . . Gun . | . . Cannon . | . . Launcher . | . . Special . | . . Kinetic . | . . Thermal . | . . Explosive . | . . Electromagnetic . | . . Robot Hit Streak . | . . Robot Miss Streak . | . . Penetration Max . | . . Secondary Targets . | . . Shots Hit Robots . | . . Core Hits 9 | . 9 Critical Kills . | . . Critical Parts Destroyed . | . . Critical Strikes . | . . Melee Attacks . | . . Impact . | . . Slashing . | . . Piercing . | . . Sneak Attacks . | . . Combat Hostiles . | . . Follow-up Attacks . | . . Damage Inflicted 97 | . 97 Guns . | . . Cannons . | . . Explosions . | . . Melee . | . . Ramming 97 | . 97 Kinetic . | . . Thermal . | . . Explosive . | . . Electromagnetic . | . . Impact . | . . Slashing . | . . Piercing . | . . Highest Corruption . | . . Average Corruption . | . . Corruption Purged . | . . Corruption Blocked . | . . Overload Shots . | . . Overflow Damage . | . . Projectiles . | . . Explosions . | . . Melee . | . . Knockbacks . | . . Impact . | . . Kinetic . | . . Secondary . | . . Self-Inflicted Damage 4 | . 4 Shots . | . . Rammed 48 | . 48 Targets Rammed 54 | . 54 Kicked . | . . Crushed 6 | . 6 Highest Temperature 7 | . 7 Average Temperature 7 | . 7 Received Heat Transfer 360 | . 360 Siege Activations . | . . Robots Corrupted . | . . Combat Hostiles . | . . Parts Fried . | . . Impact Corruptions . | . . Robots Melted . | . . Combat Hostiles . | . . Parts Melted . | . . Heat Transferred . | . . Parts Sabotaged . | . . Parts Stolen . | . . Parts Stripped . | . . Power Chain Reactions . | . . Missiles Intercepted . | . . Alert | -11 -10 ------- Run | Jun Mat Peak Influence 175 | . 175 Initial . | . . Average 61 | . 81 Maximum Alert Level . | . . Low Security (%) 100 | 100 100 Level 1 . | . . Level 2 . | . . Level 3 . | . . Level 4 . | . . Level 5 . | . . High Security . | . . Max Security . | . . Squads Dispatched . | . . Investigation . | . . Extermination . | . . Reinforcement . | . . Assault . | . . Garrison . | . . Intercept . | . . Searches Triggered . | . . Construction Impeded . | . . Haulers Reinforced . | . . Active Scanning Responses . | . . Cargo Convoy Interrupts . | . . Stealth | -11 -10 --------- Run | Jun Mat Distress Signals 3 | . 3 Communications Jammed . | . . Distress Signals . | . . Times Spotted 13 | . 13 Peak Tracking Total 5 | . 5 Tactical Retreats 2 | . 2 Traps | -11 -10 ------- Run | Jun Mat Traps Triggered . | . . Indirectly . | . . Trap Hack Attempts . | . . Triggered . | . . Disarmed . | . . Reprogrammed . | . . Reused . | . . Traps Extracted . | . . Installed . | . . Triggered . | . . Machines | -11 -10 ---------- Run | Jun Mat Machines Disabled . | . . Max in Single Turn . | . . Machines Repaired . | . . Machines Sabotaged . | . . Overloaded Fab Kills . | . . Hacking | -11 -10 --------- Run | Jun Mat Machines Accessed 1 | . 1 Terminals 1 | . 1 Fabricators . | . . Repair Stations . | . . Recycling Units . | . . Scanalyzers . | . . Garrison Access . | . . Total Hacks 3 | . 3 Successful 3 | . 3 Failed . | . . Catastrophic . | . . Database Lockouts . | . . Manual . | . . Terminals 3 | . 3 Fabricators . | . . Repair Stations . | . . Recycling Units . | . . Scanalyzers . | . . Garrison Access . | . . Terminal Hacks 3 | . 3 Robot Analysis 1 | . 1 Alert Level 1 | . 1 Locate Traps 1 | . 1 Fabricator Hacks . | . . Repair Station Hacks . | . . Recycling Unit Hacks . | . . Scanalyzer . | . . Garrison Access Hacks . | . . Unauthorized Hacks . | . . Terminals . | . . Fabricators . | . . Repair Stations . | . . Recycling Units . | . . Scanalyzers . | . . Garrison Access . | . . Data Cores Recovered . | . . Used . | . . Hacking Detections . | . . Full Trace Events . | . . Feedback Events . | . . Feedback Blocked . | . . Robot Schematics Acquired . | . . Robots Built . | . . Authchips . | . . Time . | . . Total Robot Build Rating . | . . Part Schematics Acquired . | . . Parts Built . | . . Authchips . | . . Time . | . . Total Part Build Rating . | . . Parts Repaired . | . . Time . | . . Parts Recycled . | . . Recycled Matter . | . . Retrieved Matter . | . . Retrieved Components . | . . Parts Scanalyzed . | . . Part Schematics Acquired . | . . Parts Damaged . | . . Bothacking | -11 -10 ------------ Run | Jun Mat Used RIF Installer . | . . Robots Hacked . | . . Non-combat . | . . Combat . | . . Robot Hacks Applied . | . . Relay Couplers Released . | . . Fabnet Peak Effective % . | . . Robots Rewired . | . . Allies Hacked . | . . Hacks Repelled . | . . Allies | -11 -10 -------- Run | Jun Mat Total Allies . | . . Largest Group . | . . Highest-Rated Group . | . . Highest-Rated Ally . | . . Total Orders . | . . Ally Attacks . | . . Total Damage . | . . Kills . | . . Allies Corrupted . | . . Allies Melted . | . . Intel | -11 -10 ------- Run | Jun Mat Robot Analysis Total 1 | . 1 Derelict Logs Recovered . | . . Drone Launches . | . . Drone Recoveries . | . . Exploration | -11 -10 ------------- Run | Jun Mat Turns Passed 603 | 145 458 Spaces Moved 399 | 173 226 Core 151 | 134 17 Treads 248 | 39 209 Legs . | . . Wheels . | . . Hover . | . . Flight . | . . Fastest Speed 50 | 50 160 Average Speed 125 | 76 163 Slowest Speed 300 | 300 200 Overloaded Moves . | . . Propulsion Burnouts . | . . Robots Hopped . | . . Cave-ins Triggered . | . . Exploration Rate (%) 15 | 5 26 Regions Visited 1 Branch Regions . Pre-discovered Areas . | . . Known Exits Taken 1 | 1 . Unknown Exits Taken . | . . Scrap Searched . | . . Spaces Dug . | . . Terrain Destroyed . | . . Melee . | . . Projectile . | . . AOE . | . . Terrain Rammed . | . . Walls Destroyed . | . . Machines Disabled . | . . Actions | -11 -10 --------- Run | Jun Mat Total 467 | 186 281 Wait . | . . Move 398 | 172 226 Hop . | . . Pick Up 10 | 9 1 Fast Attach . | . . Attach 5 | 5 . Detach . | . . Swap . | . . Drop . | . . Fire . | . . Melee . | . . Ram 9 | . 9 Kick . | . . Crush 45 | . 45 Escape Stasis . | . . Rewire . | . . Trap . | . . Miscellaneous . | . . Route ------- -11/Junkyard -10/Materials (discovered 1 exit: *Min) History --------- Turn | Location | Event 12 | -11/Junkyard | Identified exit to Materials 12 | -11/Junkyard | Discovered exit to Materials (range 14) 146 | -11/Junkyard | Entered Materials 146 | -10/Materials | Evolved 1 slot: Power x1 191 | -10/Materials | Identified exit to Mines 191 | -10/Materials | Discovered exit to Mines (range 16) 318 | -10/Materials | Build established: Hacker-Mutant 396 | -10/Materials | Core integrity fell below 50% 587 | -10/Materials | Core integrity fell below 20% 604 | -10/Materials | Destroyed by S-10 Pest with Light Assault Rifle Last Messages --------------- 00549_ Crushed W-16 Scout. 00549_ W-16 Scout destroyed. 00551_ Slammed into W-16 Scout. 00552_ K-01 Serf cleans the Matter Filter. 00553_ Lgt. Treads destroyed. 00556_ Slammed into S-10 Pest. 00561_ K-01 Serf collects debris. 00564_ Slammed into S-10 Pest. 00564_ R-06 Scavenger collects Sensor Array. 00565_ K-01 Serf collects debris. 00566_ Slammed into S-10 Pest. 00568_ K-01 Serf collects debris. 00570_ Slammed into S-10 Pest. 00571_ K-01 Serf collects debris. 00576_ Slammed into S-10 Pest. 00577_ W-16 Scout distress signal alerts nearby ally. 00578_ K-01 Serf collects debris. 00586_ Slammed into S-10 Pest. 00589_ K-01 Serf collects debris. 00595_ K-01 Serf cleans the Matter Filter. Map ----- +----------------------------------------------------+ | ??????????????????????#%###############????# ???? | | ??????????????????????#%%%% ##### ????? | | ????????###???????????#%% ?????? | | ???????? ?????????#%% ?????? | | ??????? ????????#%%""" """ """ #???????? | | ??????? ??????# """ """ """ #???????? | | ?????? ###### """ """ """ #???????? | | ?????? ^ ##??????? | | ?????? ^ #??????? | | ?????? ^^ ###### + "????? | | ?????? ^^ #????# ### # "????? | | ??????? ##+####### ###########+##?? #??????? | | ??????????????????## ##???# #??? #??????? | | ???????????????????# #????# """ #????#??????? | | ???????????????????# #????# """ #???????????? | | ???????????????????# #????# """ #???????????? | | ????????????????#### ##???# #???????????? | | ????????????????#" #???#% +???????????? | | ????????????????#"" #???# " " #???????????? | | ????????????????#!! #???# "R" #???????????? | | ????????????????#"" > #???# """ #???????????? | | ????????????????#!! #???#+########???????????? | | ????????????????#"" #???# #??????????????????? | | ????????????????#" % #???# #??????????????????? | | ?????? ####??????# %%######+####???????????????? | | ?????# ##### *%# @ #???????????????? | | ?????# %%%s% #???????????????? | | ?????# %%%#% #???????????????? | | ?????? """"""" %%# #???????????????? | | ??????? ? ??""""""" ## #???????????????? | | ??????????????""""" ## ! #???????????????? | | ??????????????""""" ## #???????????????? | | ???????????????"""" ## #???????????????? | | ??????????????? ############???????????????? | | ?????????????? #??????????????????????????? | | ??????????????""""" #??????????????????????????? | | ??????????????""""" ??????????????????????????? | | ???????????????"""" ??????????????????????????? | | ??????????????????" #??????????????????????????? | | ??????????????????" #??????????????????????????? | | ?????????????????? ???????????????????????????? | | ?????????????????? ???????????????????????????? | | ?????????????????? ???????????????????????????? | | ??????????????????? ???????????????????????????? | | ?????????????????????????????????????????????????? | | ?????????????????????????????????????????????????? | | ?????????????????????????????????????????????????? | | ?????????????????????????????????????????????????? | | ?????????????????????????????????????????????????? | | ?????????????????????????????????????????????????? | +----------------------------------------------------+ Best States ------------- Heat Dissipation 25 Energy Generation 10 Energy Capacity 250 Matter Stores 300 Matter Capacity 300 Sight Range 16 Terrain Scan Density 10 Resistance: KI 35 Resistance: TH 35 Resistance: EX 35 Resistance: EM 35 Resistance: I 35 Resistance: S 35 Resistance: P 35 Evasion (%) 50 Recoil Reduction 2 Offensive Hacking 20 Item Schematics ----------------- None Robot Schematics ------------------ None Fabricated ------------ Nothing Alien Tech Used ----------------- None Achievements -------------- None Challenges ------------ None Game ------ Seed RagnarokInsulatedEngine Manual? 0 Play Time 00:17:59 Cumulative 35.9 hours Start 2024.02.04 @ 23:13:06 End 2024.02.04 @ 23:30:49 Sessions 1 Manual Loads 0 Difficulty Explorer Special Mode None Game No. 44 Rogue 31 Adventurer 0 Explorer 13 Win Type - Total 0 Types 0/0/0/0/0/0/0/0/0 Lore% 19 Gallery% 23 Achievement% 21 Wizard Run 0 Options --------- ASCII 0 Keyboard 0 Movement Arrows Keybinds 0 Fullscreen 1 Font 12/Fuzzy Map View 76x56 Tactical HUD 1 Map Filters NONE Filters NONE Steam 1 RUN: 10fca096-e9c0-4f8e-a148-364c0b8ba1f4